bitfinex/quotes_ETHUSD_20240722
["timestamp","ask_amount","ask_price","bid_price","bid_amount"]
[1721614465126,0.59171747,3531.5,3531.4,3.71746571]
[1721614466751,0.87836034,3531.7,3531.5,2.83165]
[1721614466927,0.87836034,3531.7,3531.6,0.08004669]
[1721614467316,0.87836034,3531.7,3531.6,2.91161669]
[1721614469937,0.87836034,3531.7,3531.6,0.08004669]
[1721614470100,0.87836034,3531.7,3531.4,2.8317]
[1721614470309,0.59192308,3531.5,3531.4,2.8317]
[1721614470530,0.59192308,3531.5,3531.4,0.797638]
[1721614470735,0.59192308,3531.5,3531.3,2.8318]
[1721614473258,0.59192308,3531.4,3531.2,2.83188]
[1721614473629,3.13256034,3531.6,3531.2,2.83188]
[1721614473630,0.59192308,3531.5,3531.2,2.83188]
[1721614474030,0.59192308,3531.4,3531.2,2.83188]
[1721614476317,0.59192308,3531.4,3531.0,3.40648757]
[1721614476521,0.59192308,3531.4,3531.1,2.83196]
[1721614476724,0.59192308,3531.3,3531.1,2.83196]
[1721614477064,0.59192308,3531.4,3531.1,2.83196]
[1721614477223,0.59192308,3531.3,3531.1,2.83196]
[1721614477534,0.59192308,3531.3,3531.1,3.69727076]
[1721614478356,0.59192308,3531.3,3531.1,0.86531076]
[1721614478564,0.59192308,3531.3,3530.9,2.83209]
[1721614478748,0.59192308,3531.2,3530.7,2.83224]
[1721614479060,0.59192308,3531.1,3530.8,0.08005396]
[1721614479556,0.59192308,3531.0,3530.8,0.08005396]
[1721614481153,0.59192308,3531.1,3530.8,0.08005396]
[1721614481353,0.59192308,3531.1,3530.8,2.91225396]
[1721614483237,0.59192308,3531.1,3530.9,2.83212]
[1721614483622,0.59192308,3531.1,3531.0,0.0800447]
[1721614484060,0.59192308,3531.1,3530.8,2.83221]
[1721614484263,0.59192308,3531.1,3531.0,0.0800447]
[1721614484461,0.59192308,3531.1,3530.9,0.08004933]
[1721614484668,0.59192308,3531.1,3531.0,0.0800447]
[1721614485366,0.59192308,3531.1,3530.8,2.83221]
[1721614485571,0.59192308,3531.1,3531.0,0.0800447]
[1721614485776,0.59192308,3531.1,3530.9,2.91216933]
[1721614486071,0.59192308,3531.1,3531.0,0.0800447]
[1721614487436,6.15315868,3531.1,3531.0,0.0800447]
[1721614487641,6.15315868,3531.1,3530.3,2.8326]
[1721614487642,2.83206,3531.0,3530.3,2.8326]
[1721614487873,0.59119338,3530.7,3530.3,2.8326]
[1721614488171,0.59119338,3530.7,3530.4,2.91265734]
[1721614488752,0.59119338,3530.7,3530.4,0.08012734]
[1721614488753,0.59119338,3530.6,3530.4,0.08012734]
[1721614488934,2.91949338,3530.6,3530.1,2.83278]
[1721614489139,2.91949338,3530.6,3530.2,0.08019304]
[1721614489361,2.91949338,3530.6,3530.2,2.91287304]
[1721614489750,2.3283,3530.6,3530.2,2.91287304]
[1721614489969,0.59119338,3530.7,3530.2,0.08019304]
[1721614490279,0.59119338,3530.7,3530.4,2.83248]
[1721614490478,3.24659008,3530.9,3530.5,2.83238]
[1721614490479,0.59119338,3530.8,3530.5,2.83238]
[1721614490776,0.59119338,3530.8,3530.5,0.08017915]
[1721614491284,0.59119338,3530.8,3530.3,2.83261]
[1721614491285,2.95099338,3530.9,3530.3,2.83261]
[1721614491578,0.59119338,3530.8,3530.3,2.83261]
[1721614491774,0.59119338,3530.8,3530.4,0.08018378]
[1721614491963,0.59119338,3530.7,3530.4,0.08018378]
[1721614492177,0.59119338,3530.8,3530.4,0.08018378]
[1721614494248,0.59119338,3530.8,3530.2,2.83269]
[1721614494481,0.59119338,3530.8,3530.5,0.08017915]
[1721614494686,1.6596344,3530.8,3530.2,2.83269]
[1721614494859,1.6596344,3530.8,3530.6,0.08017452]
[1721614495185,1.6596344,3530.8,3530.7,0.08016989]
[1721614495643,1.6596344,3530.8,3530.2,2.83269]
[1721614495840,0.59119338,3530.8,3530.2,2.83269]
[1721614496053,3.42343338,3530.8,3530.3,0.08018841]
[1721614496254,2.83237,3530.7,3530.3,0.08018841]
[1721614496491,2.4232,3530.5,3530.0,2.83285]
[1721614496657,2.4232,3530.5,3530.4,0.08018378]
[1721614496858,2.4232,3530.5,3530.0,2.83285]
[1721614497247,2.4232,3530.5,3530.1,0.08019767]
[1721614500258,2.4232,3530.5,3530.2,0.08019304]
[1721614500461,2.4232,3530.5,3529.9,2.83291]
[1721614500670,2.4232,3530.5,3529.6,2.83317]
[1721614500671,5.25566,3530.5,3530.3,0.08018841]
[1721614501000,6.12763766,3530.5,3529.8,2.83299]
[1721614501149,5.25566,3530.5,3529.8,2.83299]
[1721614501353,5.25566,3530.5,3529.9,0.08036062]
[1721614501953,2.4232,3530.5,3529.9,2.91329062]
[1721614503394,5.25566,3530.5,3529.9,2.91329062]
[1721614503783,5.25566,3530.5,3529.9,0.08036062]
[1721614505165,5.25566,3530.5,3529.9,2.91329062]
[1721614505603,2.4232,3530.5,3529.9,2.91329062]
[1721614505909,3.42341338,3530.8,3529.9,0.65500668]
[1721614505910,2.3078,3530.8,3529.9,0.65500668]
[1721614506227,2.3078,3530.8,3530.0,2.4869]
[1721614506228,5.14002,3530.8,3530.0,2.4869]
[1721614506519,5.14002,3530.8,3530.1,2.83277]
[1721614506828,5.14002,3530.8,3530.2,2.83268]
[1721614506829,2.3078,3530.8,3530.2,2.83268]
[1721614506991,2.3078,3530.8,3530.2,2.91304868]
[1721614507200,5.14001,3530.8,3530.2,2.91304868]
[1721614508890,5.14001,3530.8,3530.2,0.08036868]
[1721614509212,5.14001,3530.8,3530.0,5.31971]
[1721614509426,5.14001,3530.8,3530.1,2.83277]
[1721614509731,2.3078,3530.8,3530.2,2.83269]
[1721614510015,2.3078,3530.8,3530.3,2.83261]
[1721614510220,2.3078,3530.8,3530.2,0.08036868]
[1721614510221,2.3078,3530.8,3530.2,2.91304868]
[1721614510418,2.3078,3530.8,3530.4,0.08035942]
[1721614510583,2.3078,3530.8,3530.3,0.08036405]
[1721614511494,2.3078,3530.8,3530.3,2.91297405]
[1721614517127,2.89899338,3530.8,3530.3,2.91297405]
[1721614517519,2.89899338,3530.8,3530.3,2.83261]
[1721614517906,2.3078,3530.8,3530.3,2.83261]
[1721614518225,2.89899338,3530.8,3530.3,2.83261]
[1721614522045,0.59119338,3530.7,3530.1,2.83277]
[1721614522534,0.59119338,3530.7,3530.2,0.08037652]
[1721614522693,0.59119338,3530.7,3530.2,2.91306652]
[1721614523291,0.59119338,3530.7,3530.6,2.83237]
[1721614523532,2.88679338,3531.0,3530.4,2.83252]
[1721614523735,2.88679338,3531.0,3530.6,2.912728]
[1721614523937,2.88679338,3531.0,3530.6,2.83237]
[1721614524250,0.59119338,3530.9,3530.7,0.08035337]
[1721614524421,2.88679338,3531.0,3530.6,2.83237]
[1721614524907,2.88679338,3531.0,3530.7,0.08035337]
[1721614525100,0.59119338,3530.8,3530.7,0.08035337]
[1721614525411,0.59119338,3530.8,3530.5,2.83242]
[1721614525628,0.59119338,3530.8,3530.7,0.08035337]
[1721614525948,0.59119338,3530.9,3530.2,0.90480805]
[1721614526150,0.59119338,3531.1,3530.8,2.83221]
[1721614526303,0.59119338,3531.1,3530.9,2.83213]
[1721614526643,0.59119338,3531.1,3530.9,2.91244901]
[1721614527003,8.07119338,3531.2,3530.9,2.91244901]
[1721614527333,8.07119338,3531.2,3530.9,2.83213]
[1721614527716,0.59119338,3531.2,3530.9,2.83213]
[1721614529855,3.88679008,3531.4,3530.6,2.83236]
[1721614529856,0.59119338,3531.1,3530.6,2.83236]
[1721614530350,0.59119338,3531.0,3530.6,2.83236]
[1721614530558,2.97799338,3531.0,3530.6,2.83236]
[1721614531059,2.97799338,3531.0,3530.3,5.31668]
[1721614531060,2.97799338,3531.0,3530.5,2.83242]
[1721614531926,3.01869661,3531.0,3530.4,2.83253]
[1721614532272,0.59119338,3530.8,3530.1,2.83277]
[1721614532477,5.82895661,3530.7,3530.0,2.83283]
[1721614532772,5.82895661,3530.7,3529.6,2.3639]
[1721614532773,0.59119338,3530.3,3529.6,2.83316]
[1721614532976,2.8327,3530.2,3529.5,2.84]
[1721614533126,0.59119338,3530.2,3529.5,2.84]
[1721614533332,0.59119338,3530.2,3529.8,2.83299]
[1721614533567,0.59119338,3530.3,3529.8,2.83299]
[1721614534633,0.59119338,3530.3,3529.6,2.83313]
[1721614534828,0.59119338,3530.2,3529.6,2.83313]
[1721614535455,0.59119338,3530.2,3529.7,2.83309]
[1721614537663,0.59119338,3530.3,3529.7,2.83309]
[1721614537866,0.59119338,3530.2,3529.7,2.83309]
[1721614538168,0.59119338,3530.3,3529.7,2.83309]
[1721614538330,0.59119338,3530.2,3529.7,2.83309]
[1721614538530,3.71934008,3530.4,3529.8,2.833]
[1721614538531,0.59119338,3530.3,3529.8,2.833]
[1721614538971,0.59119338,3530.3,3529.9,0.07497358]
[1721614539931,0.59119338,3530.3,3529.9,2.90789358]
[1721614540130,0.59119338,3530.3,3529.9,0.64907294]
[1721614540329,2.99339338,3530.5,3530.1,2.83271]
[1721614541060,2.99339338,3530.5,3530.2,0.07495969]
[1721614541663,2.99339338,3530.5,3530.2,2.90763969]
[1721614542179,2.4022,3530.5,3530.2,0.07495969]
[1721614542473,2.4022,3530.5,3530.0,2.83281]
[1721614542665,2.99339338,3530.5,3530.3,0.07495506]
[1721614542870,2.99339338,3530.5,3530.1,2.83275]
[1721614543667,2.99339338,3530.5,3530.2,0.07495969]
[1721614544463,2.99339338,3530.5,3530.2,2.90763969]
[1721614545178,2.99339338,3530.5,3530.2,0.07495969]
[1721614545666,2.99339338,3530.5,3530.3,0.07495506]
[1721614545904,2.99339338,3530.5,3530.1,2.83276]
[1721614546185,2.99339338,3530.5,3530.4,0.07495043]
[1721614546398,2.99339338,3530.5,3530.1,2.83276]
[1721614546596,2.99339338,3530.5,3530.1,3.399336]
[1721614546768,0.59119338,3530.5,3530.2,0.07502992]
[1721614548996,0.59119338,3530.4,3530.2,0.07502992]
[1721614549296,0.59119338,3530.4,3529.7,2.8331]
[1721614549297,0.59119338,3530.5,3530.0,2.83286]
[1721614549516,0.59119338,3530.4,3530.3,0.07502529]
[1721614549656,0.59119338,3530.4,3530.0,2.83286]
[1721614549977,2.2516,3530.3,3530.0,2.83286]
[1721614550160,2.2516,3530.3,3529.8,2.83297]
[1721614551352,2.2516,3530.3,3529.7,2.83303]
[1721614551591,2.2516,3530.3,3529.7,0.43105642]
[1721614551761,2.2516,3530.3,3529.5,2.83324]
[1721614552710,2.2516,3530.3,3529.7,2.83303]
[1721614553964,2.2516,3530.3,3529.8,0.0751421]
[1721614554369,2.2516,3530.3,3529.7,2.83303]
[1721614554607,2.2516,3530.3,3529.9,0.07513747]
[1721614554965,2.2516,3530.3,3529.7,2.83303]
[1721614555168,2.2516,3530.3,3530.0,0.07513284]
[1721614555471,2.2516,3530.3,3530.1,0.0751282]
[1721614555811,2.2516,3530.3,3529.7,2.83303]
[1721614556112,5.08422,3530.3,3529.7,2.83303]
[1721614556602,5.08422,3530.3,3529.8,0.0751421]
[1721614557007,5.08422,3530.3,3529.7,2.83303]
[1721614557229,5.08422,3530.3,3529.9,0.07513747]
[1721614557435,5.08422,3530.3,3529.8,0.0751421]
[1721614557732,2.2516,3530.3,3529.7,2.83303]
[1721614558042,2.2516,3530.3,3529.9,0.07513747]
[1721614558194,2.2516,3530.3,3529.8,2.9081321]
[1721614558731,0.59119338,3530.5,3529.9,2.253]
[1721614558906,3.06089338,3530.6,3530.2,2.83264]
[1721614559105,3.06089338,3530.6,3530.3,2.83261]
[1721614559106,2.4697,3530.6,3530.3,2.83261]
[1721614559402,2.4697,3530.6,3530.3,2.90772894]
[1721614560735,2.4697,3530.6,3530.3,0.07511894]
[1721614562656,0.59119338,3530.7,3530.4,2.83252]
[1721614562818,0.59119338,3530.7,3530.6,2.83237]
[1721614563022,13.59238677,3531.0,3530.7,2.83227]
[1721614563023,13.00119338,3531.0,3530.7,2.83227]
[1721614563220,12.41,3531.0,3530.7,2.83229]
[1721614563421,0.59119338,3531.1,3530.8,0.07507241]
[1721614563619,1.62655372,3531.4,3530.8,0.07507241]
[1721614563620,1.03536033,3531.4,3531.0,2.83205]
[1721614563879,0.59119338,3531.4,3531.0,2.83205]
[1721614564021,2.93979338,3531.5,3531.0,2.83205]
[1721614564226,2.93979338,3531.5,3531.1,0.07502574]
[1721614564685,0.59119338,3531.4,3531.1,0.07502574]
[1721614565071,0.59119338,3531.4,3530.8,2.83215]
[1721614565281,0.59119338,3531.4,3531.2,0.07496649]
[1721614565594,0.59119338,3531.3,3530.5,2.83238]
[1721614565966,0.59119338,3531.3,3530.6,0.07497242]
[1721614566711,0.59119338,3531.3,3530.7,2.83227]
[1721614567063,0.59119338,3531.3,3530.7,2.90723935]
[1721614569163,0.59119338,3531.3,3530.8,2.8322]
[1721614569368,0.59119338,3531.4,3530.8,3.40615393]
[1721614571299,0.59119338,3531.4,3530.8,2.8322]
[1721614571902,2.83183,3531.3,3530.6,2.83237]
[1721614572211,2.83183,3531.3,3530.9,0.07496009]
[1721614572212,3.42302338,3531.3,3530.9,0.07496009]
[1721614572407,0.04070323,3531.2,3530.6,2.83237]
[1721614572593,2.87261323,3531.2,3531.0,0.07495546]
[1721614572782,3.46380661,3531.2,3530.5,2.83244]
[1721614573112,3.46380661,3531.2,3530.4,5.27537]
[1721614573291,0.59119338,3531.2,3530.6,0.07490217]
[1721614573614,0.59119338,3531.3,3530.5,1.041]
[1721614573774,0.59119338,3531.4,3530.7,0.07489754]
[1721614573973,0.59119338,3531.4,3530.6,0.07491934]
[1721614574214,5.18026,3531.5,3530.5,1.041]
[1721614574215,5.77145338,3531.5,3530.5,1.041]
[1721614574379,5.77145338,3531.5,3530.6,0.34839]
[1721614574579,5.77145338,3531.5,3530.8,2.83215]
[1721614574785,0.59119338,3531.4,3530.8,2.83215]
[1721614574984,0.59119338,3531.4,3530.9,0.07490389]
[1721614575185,5.77145338,3531.5,3530.9,0.07490389]
[1721614575684,2.83175,3531.4,3530.9,0.07490389]
[1721614575899,3.42294338,3531.4,3530.9,0.07490389]
[1721614576693,2.83175,3531.4,3530.9,0.07490389]
[1721614577177,3.42294338,3531.4,3530.9,0.07490389]
[1721614577331,2.83175,3531.4,3530.9,0.07490389]
[1721614578425,3.42294338,3531.4,3530.9,0.07490389]
[1721614579322,2.83175,3531.4,3530.9,0.07490389]
[1721614579527,3.42294338,3531.4,3530.9,0.07490389]
[1721614579828,2.83175,3531.4,3530.9,0.07490389]
[1721614580125,3.42294338,3531.4,3530.9,0.07490389]
[1721614581105,3.42294338,3531.4,3530.7,2.83229]
[1721614581106,3.46364661,3531.4,3530.7,2.83229]
[1721614581311,2.83182,3531.3,3531.0,0.07489926]
[1721614581612,1.54425505,3531.4,3530.7,2.83228]
[1721614581817,0.59119338,3531.4,3531.1,0.07489463]
[1721614582028,0.63189661,3531.4,3530.7,2.83228]
[1721614582529,0.59119338,3531.4,3530.8,0.07490852]
[1721614582741,0.59119338,3531.4,3530.7,2.83228]
[1721614582914,0.59119338,3531.4,3530.9,0.07490389]
[1721614583112,0.59119338,3531.4,3530.7,2.83228]
[1721614583430,0.59119338,3531.4,3531.0,0.07489926]
[1721614583630,0.59119338,3531.4,3530.7,2.83228]
[1721614583631,2.83174,3531.4,3530.7,2.83228]
[1721614583856,3.42293338,3531.4,3530.7,2.83228]
[1721614584152,3.42293338,3531.4,3530.8,0.07490852]
[1721614584372,3.42293338,3531.4,3530.7,2.83228]
[1721614584842,3.42293338,3531.4,3530.8,0.07490695]
[1721614585154,0.59119338,3531.4,3530.9,2.83211]
[1721614585313,0.59119338,3531.4,3531.0,2.83199]
[1721614585519,2.3486,3531.5,3531.0,0.74541769]
[1721614586270,2.3486,3531.5,3531.0,0.07489769]
[1721614588119,2.93979338,3531.5,3531.0,0.07489769]
[1721614588821,2.3486,3531.5,3531.0,0.07489769]
[1721614589025,2.93979338,3531.5,3531.0,0.07489769]
[1721614590443,2.3486,3531.5,3531.0,0.07489769]
[1721614590647,2.93979338,3531.5,3531.0,0.07489769]
[1721614590818,2.3486,3531.5,3531.0,0.07489769]
[1721614591039,2.93979338,3531.5,3531.0,0.07489769]
[1721614596291,0.59119338,3531.4,3531.0,0.07489769]
[1721614598584,3.23539008,3531.5,3531.0,0.07489769]
[1721614598585,0.59119338,3531.3,3531.0,0.07489769]
[1721614598743,0.59119338,3531.4,3531.0,0.07489769]
[1721614599258,3.23539008,3531.5,3531.0,0.07489769]
[1721614599259,0.59119338,3531.3,3531.0,0.07489769]
[1721614599943,0.59119338,3531.3,3530.8,2.8322]
[1721614600143,0.59119338,3531.3,3531.1,0.0748962]
[1721614600340,0.59119338,3531.3,3530.8,2.8322]
[1721614600597,0.59119338,3531.3,3531.2,0.07489157]
[1721614600759,0.59119338,3531.3,3530.8,2.8322]
[1721614600957,0.59119338,3531.3,3531.2,0.07489157]
[1721614601164,0.59119338,3531.3,3530.8,2.8322]
[1721614601347,0.59119338,3531.3,3531.2,0.07489157]
[1721614601549,0.5907057,3531.3,3530.8,2.8322]
[1721614601743,0.59070279,3531.2,3530.7,2.83229]
[1721614601946,0.59070279,3531.2,3529.8,2.83295]
[1721614601947,2.3169,3530.8,3529.8,2.83295]
[1721614602222,2.3169,3530.8,3529.7,2.3953]
[1721614602223,2.83254,3530.4,3529.7,2.3953]
[1721614602484,2.3169,3530.3,3529.6,2.83317]
[1721614602887,2.9076164,3530.3,3529.6,2.83317]
[1721614603185,2.9076164,3530.3,3529.4,2.3953]
[1721614603186,3.4235064,3530.1,3529.4,2.3953]
[1721614603405,0.04070323,3530.0,3529.1,1.47772285]
[1721614603548,3.4236664,3529.9,3528.8,0.59261974]
[1721614603748,3.4236664,3529.9,3528.7,2.83389]
[1721614603749,0.5907164,3529.5,3528.7,2.83389]
[1721614604187,0.63141963,3529.6,3528.7,2.83389]
[1721614604350,0.63141963,3529.6,3528.9,2.83367]
[1721614604552,0.63141963,3529.6,3529.0,2.83364]
[1721614605181,0.5907164,3529.7,3529.3,2.83341]
[1721614605363,0.04070323,3530.0,3529.0,3.400373]
[1721614605364,0.5907164,3530.0,3529.1,1.041]
[1721614605567,0.88679008,3530.1,3529.1,1.041]
[1721614605568,0.5907164,3530.1,3529.3,2.8334]
[1721614605761,0.5907164,3530.2,3529.7,2.83309]
[1721614605966,0.5907164,3530.2,3529.5,1.041]
[1721614606178,8.36679008,3530.4,3529.9,2.83294]
[1721614606179,7.48,3530.4,3529.9,2.83294]
[1721614606381,0.5907164,3530.5,3529.7,2.83309]
[1721614606990,0.5907164,3530.4,3529.7,2.83309]
[1721614607250,0.5907164,3530.5,3529.7,3.646334]
[1721614607416,2.83262,3530.3,3529.6,2.83311]
[1721614607692,0.5907164,3530.4,3529.7,2.83309]
[1721614608592,3.4232764,3530.4,3529.7,2.83309]
[1721614611184,2.83256,3530.4,3529.7,2.83309]
[1721614611560,3.4232764,3530.4,3529.7,2.83309]
[1721614612317,3.71917008,3530.6,3529.4,2.4661]
[1721614612318,0.5907164,3530.6,3529.4,2.4661]
[1721614612469,0.5907164,3530.6,3529.5,0.285354]
[1721614612669,2.83231,3530.7,3529.5,0.285354]
[1721614612670,3.4230264,3530.7,3529.9,2.83288]
[1721614612969,0.5907164,3530.6,3529.9,2.83288]
[1721614613313,3.4230264,3530.7,3529.9,2.83288]
[1721614613483,3.4230264,3530.7,3530.0,2.83284]
[1721614613662,5.30346073,3530.7,3530.0,2.83284]
[1721614614367,2.47115073,3530.7,3529.8,2.83299]
[1721614614561,3.0,3530.7,3530.1,2.83275]
[1721614616130,3.0,3530.7,3529.9,2.83293]
[1721614616491,5.8323,3530.7,3530.0,0.0627481]
[1721614617012,6.4230164,3530.7,3530.0,0.0627481]
[1721614617384,3.5907164,3530.7,3530.0,0.0627481]
[1721614617584,2.83258,3530.4,3530.0,0.0627481]
[1721614617821,2.83258,3530.4,3529.7,2.83309]
[1721614618191,2.83258,3530.4,3529.8,0.06270296]
[1721614618629,2.83258,3530.4,3529.7,2.83309]
[1721614618922,2.83258,3530.4,3529.8,0.06270296]
[1721614619130,2.83258,3530.4,3529.7,2.83309]
[1721614619288,2.83258,3530.4,3529.8,0.06270296]
[1721614619490,2.83258,3530.4,3529.7,2.83309]
[1721614619734,2.83258,3530.4,3529.8,0.06270296]
[1721614619892,0.04070323,3530.3,3529.8,0.06270296]
[1721614620088,0.04070323,3530.3,3529.7,2.83309]
[1721614620408,0.04070323,3530.3,3529.8,0.06270296]
[1721614620604,2.87332323,3530.3,3529.8,0.06270296]
[1721614620816,2.87332323,3530.3,3529.6,2.83316]
[1721614620991,2.83271,3530.2,3529.5,2.8332]
[1721614621192,0.04070323,3530.1,3529.7,0.0627107]
[1721614621393,2.83271,3530.2,3529.6,0.06271533]
[1721614621691,2.83271,3530.2,3529.8,0.06270607]
[1721614621891,2.83271,3530.2,3529.5,2.8332]
[1721614621892,3.79237684,3530.2,3529.5,2.8332]
[1721614622394,3.79237684,3530.2,3529.6,0.06272776]
[1721614623704,2.83278,3530.1,3529.6,0.06272776]
[1721614624935,5.6662,3529.7,3529.6,0.06272776]
[1721614625235,2.83336,3529.4,3528.6,2.83396]
[1721614625390,0.04070323,3529.3,3528.6,2.83396]
[1721614625587,0.04070323,3529.3,3528.7,0.06280211]
[1721614625793,2.83322,3529.6,3528.8,2.83376]
[1721614626031,10.73381196,3529.7,3529.0,2.8336]
[1721614626248,10.73381196,3529.7,3528.3,2.83421]
[1721614626249,3.0,3529.6,3528.3,2.83421]
[1721614626403,3.0,3529.6,3528.4,0.796364]
[1721614626593,3.0,3529.6,3528.4,0.85925619]
[1721614627142,3.0,3529.6,3529.0,2.83359]
[1721614627359,3.0,3529.6,3529.1,0.06285042]
[1721614628218,3.0,3529.6,3529.2,2.83348]
[1721614628593,9.8655,3529.7,3529.2,2.83348]
[1721614628923,2.3855,3529.7,3529.2,2.83348]
[1721614630860,2.3855,3529.7,3528.4,3.630444]
[1721614630861,3.0,3529.8,3529.3,2.8334]
[1721614631016,12.41,3530.0,3529.3,3.400108]
[1721614631017,3.0,3529.9,3529.3,3.400108]
[1721614631328,3.0,3529.9,3529.4,2.83333]
[1721614631516,9.967,3530.1,3529.5,0.06292446]
[1721614631738,3.0,3530.0,3529.5,0.06292446]
[1721614632663,9.967,3530.1,3529.7,2.83309]
[1721614632955,9.967,3530.1,3529.8,0.06291057]
[1721614633128,9.967,3530.1,3529.7,2.83309]
[1721614633328,9.967,3530.1,3529.9,0.06290594]
[1721614633567,9.967,3530.1,3529.7,2.83309]
[1721614634137,9.967,3530.1,3529.8,0.06291057]
[1721614634350,0.04070323,3530.0,3529.4,2.83333]
[1721614634542,0.04070323,3530.0,3529.9,0.06290594]
[1721614634742,0.04070323,3530.0,3529.4,2.83333]
[1721614635075,0.04070323,3530.0,3529.9,0.06290594]
[1721614635279,0.04070323,3530.0,3529.4,2.83333]
[1721614635564,2.87356323,3530.0,3529.3,2.8334]
[1721614635766,0.04070323,3529.9,3529.5,0.06292446]
[1721614636085,2.83286,3530.0,3529.3,2.8334]
[1721614636235,2.487,3530.1,3529.6,0.06291983]
[1721614636553,2.487,3530.1,3529.7,0.0629152]
[1721614636753,2.487,3530.1,3529.5,2.8332]
[1721614637270,2.487,3530.1,3529.6,0.06291983]
[1721614639644,5.31978,3530.1,3529.6,0.06291983]
[1721614639848,6.19408364,3530.1,3529.6,0.06291983]
[1721614640048,6.19408364,3530.1,3529.3,2.83341]
[1721614640467,5.31978,3530.1,3529.4,0.0629291]
[1721614641758,2.87356323,3530.0,3529.4,0.0629291]
[1721614641972,2.87356323,3530.0,3529.0,2.4714]
[1721614641973,2.83298,3529.9,3529.2,2.83348]
[1721614642141,0.04070323,3529.8,3529.5,0.06292446]
[1721614642334,0.04070323,3529.8,3529.2,2.83348]
[1721614642537,0.04070323,3529.8,3529.2,3.647333]
[1721614642781,0.04070323,3529.8,3529.3,0.06293373]
[1721614642937,0.04070323,3529.8,3529.2,3.647333]
[1721614643137,0.04070323,3529.8,3529.4,0.0629291]
[1721614643467,0.04070323,3529.8,3529.2,2.83348]
[1721614644152,0.04070323,3529.8,3529.3,0.06293373]
[1721614644375,3.4236564,3529.9,3529.3,2.83342]
[1721614644376,0.5907164,3529.9,3529.3,2.83342]
[1721614644582,5.9105164,3530.1,3529.3,2.83342]
[1721614644739,0.5907164,3530.0,3529.3,2.83342]
[1721614644944,0.5907164,3530.0,3528.8,2.83374]
[1721614644945,2.2832,3529.4,3528.8,2.83374]
[1721614645850,2.2832,3529.4,3528.9,2.83373]
[1721614647425,0.04070323,3529.3,3528.3,2.83422]
[1721614647597,0.04070323,3529.3,3528.3,2.83419]
[1721614647598,2.4322,3529.0,3528.3,2.83419]
[1721614647888,0.04070323,3528.9,3528.3,2.83419]
[1721614648043,0.04070323,3528.9,3528.4,2.83412]
[1721614648400,3.06361963,3529.0,3528.4,2.83412]
[1721614648683,5.8566064,3529.0,3528.2,2.83426]
[1721614649042,5.8566064,3529.0,3528.3,2.83419]
[1721614649953,5.26589,3529.0,3528.3,2.83419]
[1721614650572,5.8566064,3529.0,3528.3,2.83419]
[1721614651361,5.26589,3529.0,3528.3,2.83419]
[1721614653192,5.30659323,3529.0,3528.3,2.83419]
[1721614653399,5.30659323,3529.0,3528.4,0.0608782]
[1721614654281,6.2683332,3529.0,3528.4,0.0608782]
[1721614654481,2.83388,3528.8,3528.4,0.0608782]
[1721614654681,2.87460323,3528.7,3527.9,2.83453]
[1721614654908,2.2943,3528.6,3527.9,2.83453]
[1721614655115,2.83415,3528.4,3528.0,0.06101648]
[1721614655334,0.04070323,3528.3,3528.0,0.06101648]
[1721614655632,0.04070323,3528.3,3527.7,2.83467]
[1721614655815,2.87493323,3528.3,3527.5,2.83486]
[1721614656023,0.04070323,3528.2,3527.8,0.06112684]
[1721614656191,0.04070323,3528.2,3527.6,2.83477]
[1721614656398,0.04070323,3528.2,3527.9,0.06112687]
[1721614656617,0.04070323,3528.2,3527.6,2.83477]
[1721614657117,0.04070323,3528.2,3527.7,0.06113614]
[1721614657428,2.4634,3528.1,3527.7,0.06113614]
[1721614658711,2.4634,3528.1,3527.5,3.401837]
[1721614659232,2.4634,3528.1,3527.6,0.06114078]
[1721614660227,0.04070323,3528.0,3527.6,0.06114078]
[1721614662233,2.4634,3528.1,3527.6,3.52569956]
[1721614662417,2.4634,3528.1,3527.6,2.89590078]
[1721614662841,2.50410323,3528.1,3527.6,0.06114078]
[1721614663040,2.4634,3528.1,3527.6,0.06114078]
[1721614663225,2.4634,3528.1,3527.3,2.83495]
[1721614663541,2.4634,3528.1,3527.7,0.06123105]
[1721614663746,2.4634,3528.1,3527.3,2.83495]
[1721614663905,2.4634,3528.1,3527.4,0.06124496]
[1721614664105,2.4634,3528.1,3527.8,0.06122641]
[1721614664408,2.4634,3528.1,3527.9,0.06122177]
[1721614664602,2.4634,3528.1,3527.6,2.83474]
[1721614664806,2.4634,3528.1,3528.0,0.06121714]
[1721614665051,2.4634,3528.1,3527.6,2.83474]
[1721614665351,2.4634,3528.1,3528.0,0.06121714]
[1721614665526,2.4634,3528.1,3527.7,2.83468]
[1721614665721,2.4634,3528.1,3527.7,2.89591105]
[1721614666330,2.4634,3528.1,3527.7,0.06123105]
[1721614666533,0.04070323,3528.0,3527.7,0.06123105]
[1721614666719,0.04070323,3528.0,3526.4,4.31418335]
[1721614666720,2.2583,3527.7,3527.1,2.83512]
[1721614666916,0.04070323,3527.6,3527.1,2.83512]
[1721614668049,0.04070323,3527.6,3526.7,2.83549]
[1721614668249,2.83495,3527.4,3526.7,2.83549]
[1721614668450,2.83495,3527.4,3526.8,0.06158245]
[1721614668451,0.04070323,3527.3,3526.8,0.06158245]
[1721614669071,2.2583,3527.2,3526.9,0.06157781]
[1721614669226,0.04070323,3527.1,3526.9,0.06157781]
[1721614669424,0.04070323,3527.1,3526.8,2.83542]
[1721614669629,2.2583,3527.2,3527.0,0.06157317]
[1721614669841,2.2583,3527.2,3526.8,2.83542]
[1721614670077,0.04070323,3527.1,3526.8,2.83542]
[1721614670289,2.2583,3527.2,3526.6,2.83556]
[1721614670585,2.2583,3527.2,3526.7,2.8355]
[1721614671777,2.2583,3527.2,3526.5,3.119215]
[1721614672089,5.13416323,3527.2,3526.5,2.83565]
[1721614674071,2.29900323,3527.2,3526.6,2.83558]
[1721614674270,2.2583,3527.2,3526.6,2.83558]
[1721614674570,9.9123,3527.5,3527.0,2.83524]
[1721614674768,3.0,3527.4,3526.8,2.83542]
[1721614674948,3.0,3527.4,3526.8,3.12512071]
[1721614675151,3.0,3527.4,3526.9,2.83528]
[1721614675699,3.0,3527.4,3526.9,2.89685781]
[1721614676247,3.0,3527.4,3527.0,2.83525]
[1721614676769,3.0,3527.4,3527.1,0.06156853]
[1721614678261,4.574702,3527.4,3527.1,0.06156853]